bitfinex/quotes_BTCUSD_20241027
["timestamp","ask_amount","ask_price","bid_price","bid_amount"]
[1729996879045,1.00483837,67028.0,67027.0,0.00144127]
[1729996879262,1.00499286,67028.0,67027.0,0.00144127]
[1729996880340,1.00299286,67028.0,67027.0,0.00144127]
[1729996880795,0.85208106,67028.0,67027.0,0.00144127]
[1729996881440,0.85208121,67028.0,67027.0,0.00144127]
[1729996884962,1.00303832,67028.0,67027.0,0.00144127]
[1729996885376,0.85208246,67028.0,67027.0,0.00144127]
[1729996885811,0.85408246,67028.0,67027.0,0.00144127]
[1729996886023,0.85208246,67028.0,67027.0,0.00144127]
[1729996886660,0.85408246,67028.0,67027.0,0.00144127]
[1729996888196,0.85208246,67028.0,67027.0,0.00144127]
[1729996888448,0.82412087,67028.0,67027.0,0.00144127]
[1729996888668,0.85208479,67028.0,67027.0,0.00144127]
[1729996890902,0.85408479,67028.0,67027.0,0.00144127]
[1729996891995,0.86902815,67028.0,67027.0,0.00144127]
[1729996892242,0.86902868,67028.0,67027.0,0.00144127]
[1729996892955,0.85208532,67028.0,67027.0,0.00144127]
[1729996893411,0.85417441,67028.0,67027.0,0.00144127]
[1729996893862,0.85217441,67028.0,67027.0,0.00144127]
[1729996895017,0.00518247,67019.0,67018.0,0.22240179]
[1729996895200,0.3487996,67019.0,67018.0,0.22240179]
[1729996895403,0.35994208,67019.0,67016.0,0.149216]
[1729996895624,0.34361713,67018.0,67016.0,0.149216]
[1729996895856,0.19027236,67017.0,67016.0,0.149216]
[1729996896085,0.35517734,67017.0,67016.0,0.149216]
[1729996898468,0.35517657,67017.0,67016.0,0.149216]
[1729996899541,0.35517668,67017.0,67016.0,0.149216]
[1729996904532,0.35517373,67017.0,67016.0,0.149216]
[1729996904968,0.35517373,67017.0,67016.0,0.15086]
[1729996906786,0.46701382,67017.0,67016.0,0.15086]
[1729996907451,0.35517373,67017.0,67016.0,0.15086]
[1729996907660,0.46699837,67017.0,67016.0,0.15086]
[1729996908340,0.46699507,67017.0,67016.0,0.15086]
[1729996910347,0.4669924,67017.0,67016.0,0.15086]
[1729996910581,0.46699368,67017.0,67016.0,0.15086]
[1729996911494,0.46698888,67017.0,67016.0,0.15086]
[1729996911931,0.35515647,67017.0,67016.0,0.15086]
[1729996912574,0.46698504,67017.0,67016.0,0.15086]
[1729996912791,0.46656583,67017.0,67016.0,0.15086]
[1729996912997,0.46698504,67017.0,67016.0,0.15086]
[1729996913215,0.35515514,67017.0,67016.0,0.15086]
[1729996913456,0.46698558,67017.0,67016.0,0.15086]
[1729996913668,0.35515514,67017.0,67016.0,0.15086]
[1729996913880,0.35515511,67017.0,67016.0,0.15086]
[1729996914545,0.4669876,67017.0,67016.0,0.15086]
[1729996915444,0.35515511,67017.0,67016.0,0.15086]
[1729996918869,0.46698655,67017.0,67016.0,0.15086]
[1729996919313,0.35515511,67017.0,67016.0,0.15086]
[1729996919532,0.3547359,67017.0,67016.0,0.15086]
[1729996919746,0.35515511,67017.0,67016.0,0.15086]
[1729996920400,0.46698576,67017.0,67016.0,0.15086]
[1729996921141,0.46697781,67017.0,67016.0,0.15086]
[1729996921356,0.45299936,67017.0,67016.0,0.15086]
[1729996921565,0.46697737,67017.0,67016.0,0.15086]
[1729996922855,0.31647356,67017.0,67016.0,0.15086]
[1729996925217,0.31648726,67017.0,67016.0,0.15086]
[1729996925434,0.31606805,67017.0,67016.0,0.15086]
[1729996925646,0.31648726,67017.0,67016.0,0.15086]
[1729996926974,0.31606805,67017.0,67016.0,0.15086]
[1729996927197,0.31648726,67017.0,67016.0,0.15086]
[1729996927443,0.3164892,67017.0,67016.0,0.15086]
[1729996930062,0.31650885,67017.0,67016.0,0.15086]
[1729996931611,0.20466403,67017.0,67016.0,0.15086]
[1729996934656,0.20465763,67017.0,67016.0,0.15086]
[1729996936693,0.31649811,67017.0,67016.0,0.15086]
[1729996936897,0.20465763,67017.0,67016.0,0.15086]
[1729996938195,0.17669967,67017.0,67016.0,0.15086]
[1729996938415,0.20466481,67017.0,67016.0,0.15086]
[1729996942161,0.20466206,67017.0,67016.0,0.15086]
[1729996944173,0.20465198,67017.0,67016.0,0.15086]
[1729996945562,0.31648563,67017.0,67016.0,0.15086]
[1729996946009,0.31648525,67017.0,67016.0,0.15086]
[1729996946668,0.2046516,67017.0,67016.0,0.15086]
[1729996947333,0.31648525,67017.0,67016.0,0.15086]
[1729996948202,0.29412419,67017.0,67016.0,0.15086]
[1729996951643,0.2046516,67017.0,67016.0,0.15086]
[1729996954968,0.29413032,67017.0,67016.0,0.15086]
[1729996957143,0.29413265,67017.0,67016.0,0.15086]
[1729996958361,0.29415093,67017.0,67016.0,0.15086]
[1729996963094,0.29415457,67017.0,67016.0,0.15086]
[1729996963741,0.2046758,67017.0,67016.0,0.15086]
[1729996964818,0.20467692,67017.0,67016.0,0.15086]
[1729996970875,0.20468317,67017.0,67016.0,0.15086]
[1729996971782,0.20426396,67017.0,67016.0,0.15109674]
[1729996972001,0.20426396,67017.0,67016.0,0.24699674]
[1729996972002,0.03910646,67017.0,67016.0,0.24699674]
[1729996972663,0.03911024,67017.0,67016.0,0.24699674]
[1729996972671,0.02796924,67017.0,67016.0,0.24699674]
[1729996973322,0.01398462,67017.0,67016.0,0.24699674]
[1729996973548,0.01398462,67017.0,67016.0,0.32898083]
[1729996973770,0.01398462,67017.0,67016.0,0.32599674]
[1729996976188,0.04515063,67024.0,67023.0,0.149202]
[1729996976414,0.02835289,67024.0,67023.0,0.149202]
[1729996976619,0.04081126,67024.0,67023.0,0.149202]
[1729996979925,0.0547649,67024.0,67023.0,0.149202]
[1729996981194,0.05434569,67024.0,67023.0,0.37184053]
[1729996981415,0.04188691,67024.0,67023.0,0.22833874]
[1729996981626,0.04188691,67024.0,67023.0,0.23132241]
[1729996981627,0.02792488,67024.0,67023.0,0.23132241]
[1729996982272,0.02792488,67024.0,67023.0,0.32642241]
[1729996982496,0.000822,67027.0,67026.0,0.149195]
[1729996982700,0.000822,67027.0,67026.0,0.25055517]
[1729996982933,0.02874668,67027.0,67026.0,0.25055517]
[1729996983134,0.02874668,67027.0,67026.0,0.24757156]
[1729996983336,0.01478434,67027.0,67026.0,0.2478083]
[1729996983545,0.01478086,67027.0,67026.0,0.2507919]
[1729996984203,0.000822,67027.0,67026.0,0.2507919]
[1729996984421,0.01478086,67027.0,67026.0,0.2507919]
[1729996984621,0.000822,67027.0,67026.0,0.2507919]
[1729996989110,0.000822,67027.0,67026.0,0.2478083]
[1729996989335,0.000822,67027.0,67026.0,0.35079179]
[1729996989555,0.000822,67027.0,67026.0,0.4429083]
[1729996989777,0.000822,67027.0,67026.0,0.5218083]
[1729996993548,0.000822,67027.0,67026.0,0.83640948]
[1729996993965,0.000822,67027.0,67026.0,0.73803292]
[1729996994204,0.000822,67027.0,67026.0,0.83640948]
[1729996994416,0.000822,67027.0,67026.0,0.83840948]
[1729996994883,0.000822,67027.0,67026.0,0.83640948]
[1729996996199,0.000822,67027.0,67026.0,0.78526946]
[1729996996624,0.000822,67027.0,67026.0,0.6868929]
[1729996997053,0.000822,67027.0,67026.0,0.78526946]
[1729996999402,0.000822,67027.0,67026.0,0.6868929]
[1729997004253,0.000822,67027.0,67026.0,0.6928589]
[1729997010143,0.000822,67027.0,67026.0,0.6945029]
[1729997022262,0.000822,67027.0,67026.0,0.26162253]
[1729997022474,0.000822,67027.0,67026.0,0.25107574]
[1729997022685,0.000822,67027.0,67026.0,0.25565653]
[1729997025984,0.000822,67027.0,67026.0,0.35403309]
[1729997028628,1e-06,67027.0,67026.0,1.01321525]
[1729997028860,1e-06,67027.0,67026.0,0.84395348]
[1729997029297,1e-06,67027.0,67026.0,0.88864089]
[1729997029997,1e-06,67027.0,67026.0,0.84395348]
[1729997030625,1e-06,67027.0,67026.0,0.9109846]
[1729997030835,1e-06,67027.0,67026.0,1.06045085]
[1729997031063,1e-06,67027.0,67026.0,1.06048248]
[1729997033396,1e-06,67027.0,67026.0,1.10708364]
[1729997035636,1e-06,67027.0,67026.0,0.95760579]
[1729997036052,1e-06,67027.0,67026.0,0.89055464]
[1729997040453,1e-06,67027.0,67026.0,0.89652064]
[1729997040682,1e-06,67027.0,67026.0,0.84991948]
[1729997043444,1e-06,67027.0,67026.0,1.11105782]
[1729997043900,1e-06,67027.0,67026.0,0.78164124]
[1729997044557,1e-06,67027.0,67026.0,0.63231595]
[1729997044782,1e-06,67027.0,67026.0,0.52393939]
[1729997044993,0.093501,67027.0,67026.0,0.52393939]
[1729997045696,0.093501,67027.0,67026.0,0.62731595]
[1729997045900,0.093501,67027.0,67026.0,0.63231595]
[1729997046030,0.093501,67027.0,67026.0,0.62231595]
[1729997046952,0.093501,67027.0,67026.0,0.5193586]
[1729997047166,0.093501,67027.0,67026.0,0.51797339]
[1729997048274,0.093501,67027.0,67026.0,0.40616034]
[1729997050089,0.093501,67027.0,67026.0,0.25107574]
[1729997059746,0.093501,67027.0,67026.0,0.3494523]
[1729997061033,0.093501,67027.0,67026.0,0.25107574]
[1729997066009,0.093501,67027.0,67026.0,0.150839]
[1729997066223,0.10745871,67027.0,67026.0,0.15107574]
[1729997066451,0.10745871,67027.0,67026.0,0.150839]
[1729997067357,0.093501,67027.0,67026.0,0.15107574]
[1729997067596,0.18365967,67027.0,67026.0,0.15107574]
[1729997068040,0.19761799,67027.0,67026.0,0.15107574]
[1729997068261,0.21053231,67027.0,67026.0,0.15107574]
[1729997071166,0.19657289,67027.0,67026.0,0.15107574]
[1729997071387,0.21053046,67027.0,67026.0,0.15107574]
[1729997071605,0.18365985,67027.0,67026.0,0.15107574]
[1729997072273,0.19762099,67027.0,67026.0,0.15107574]
[1729997073133,0.19762325,67027.0,67026.0,0.15107574]
[1729997074033,0.18366211,67027.0,67026.0,0.15107574]
[1729997074273,0.19762901,67027.0,67026.0,0.15107574]
[1729997075789,0.18366211,67027.0,67026.0,0.15107574]
[1729997076188,0.19763079,67027.0,67026.0,0.15107574]
[1729997076846,0.18366211,67027.0,67026.0,0.15107574]
[1729997077057,0.19763082,67027.0,67026.0,0.15107574]
[1729997077501,0.02793082,67027.0,67026.0,0.45607753]
[1729997077719,0.01396211,67027.0,67026.0,0.43042886]
[1729997077940,0.01396211,67027.0,67026.0,0.3320523]
[1729997078164,1e-06,67027.0,67026.0,0.3320523]
[1729997088414,1e-06,67027.0,67026.0,0.2494523]
[1729997091022,1e-06,67027.0,67026.0,0.15107574]
[1729997091236,0.01397163,67027.0,67026.0,0.15107574]
[1729997091860,0.10697163,67027.0,67026.0,0.15107574]
[1729997096726,0.093001,67027.0,67026.0,0.15107574]
[1729997096935,0.106972,67027.0,67026.0,0.15107574]
[1729997098046,0.013972,67027.0,67026.0,0.15107574]
[1729997098894,0.013972,67027.0,67026.0,0.2494523]
[1729997100186,1e-06,67027.0,67026.0,0.2494523]
[1729997100398,0.01397465,67027.0,67026.0,0.2494523]
[1729997103719,0.01397922,67027.0,67026.0,0.2494523]
[1729997104603,0.01397922,67027.0,67026.0,0.15107574]
[1729997104811,0.02795708,67027.0,67026.0,0.15107574]
[1729997105258,0.01397922,67027.0,67026.0,0.15107574]
[1729997105685,0.02795787,67027.0,67026.0,0.15107574]
[1729997106589,0.04082009,67027.0,67026.0,0.15107574]
[1729997107011,0.02795787,67027.0,67026.0,0.15107574]
[1729997108113,0.20295787,67027.0,67026.0,0.15107574]
[1729997108550,0.21581795,67027.0,67026.0,0.15107574]
[1729997109448,0.21581795,67027.0,67026.0,0.150839]
[1729997109933,0.21581795,67027.0,67026.0,0.15107574]
[1729997110378,0.21581795,67027.0,67026.0,0.150839]
[1729997110832,0.21581795,67027.0,67026.0,0.15107574]
[1729997111248,0.21581795,67027.0,67026.0,0.150839]
[1729997114137,0.18786108,67027.0,67026.0,0.150839]
[1729997114360,0.21580184,67027.0,67026.0,0.150839]
[1729997114583,0.21580184,67027.0,67026.0,0.15107574]
[1729997114798,0.21580184,67027.0,67026.0,0.150839]
[1729997115476,0.21580184,67027.0,67026.0,0.15107574]
[1729997115916,0.21580184,67027.0,67026.0,0.150839]
[1729997116363,0.21622105,67027.0,67026.0,0.150839]
[1729997117026,0.21622105,67027.0,67026.0,0.15107574]
[1729997117934,0.21622222,67027.0,67026.0,0.15107574]
[1729997118172,0.21622222,67027.0,67026.0,0.150839]
[1729997118863,0.21622272,67027.0,67026.0,0.150839]
[1729997119519,0.20225185,67027.0,67026.0,0.150839]
[1729997119728,0.21622303,67027.0,67026.0,0.150839]
[1729997120803,0.26091642,67027.0,67026.0,0.150839]
[1729997121039,0.21622303,67027.0,67026.0,0.150839]
[1729997121244,0.26090578,67027.0,67026.0,0.150839]
[1729997121453,0.21622303,67027.0,67026.0,0.150839]
[1729997121914,0.47054804,67027.0,67026.0,0.150839]
[1729997123225,0.21622303,67027.0,67026.0,0.150839]
[1729997124328,0.28321082,67027.0,67026.0,0.150839]
[1729997125031,0.26922538,67027.0,67026.0,0.150839]
[1729997125231,0.28318266,67027.0,67026.0,0.150839]
[1729997126770,0.21619487,67027.0,67026.0,0.150839]
[1729997127113,0.28318266,67027.0,67026.0,0.150839]
[1729997127210,0.36669868,67027.0,67026.0,0.150839]
[1729997127648,0.43368647,67027.0,67026.0,0.150839]
[1729997129207,0.36669868,67027.0,67026.0,0.150839]
[1729997129657,0.43368647,67027.0,67026.0,0.150839]
[1729997130777,0.36669868,67027.0,67026.0,0.150839]
[1729997133145,0.41134527,67027.0,67026.0,0.001644]
[1729997133361,0.36669868,67027.0,67026.0,0.150839]
[1729997139601,0.3387841,67027.0,67026.0,0.150839]
[1729997139824,0.41136102,67027.0,67026.0,0.150839]
[1729997140945,0.36670764,67027.0,67026.0,0.150839]
[1729997141419,0.41136111,67027.0,67026.0,0.150839]
[1729997142095,0.36670764,67027.0,67026.0,0.150839]
[1729997142331,0.43368754,67027.0,67026.0,0.150839]
[1729997142578,0.43368754,67027.0,67026.0,0.001644]
[1729997142806,0.36670764,67027.0,67026.0,0.150839]
[1729997143505,0.41972891,67027.0,67026.0,0.150839]
[1729997143733,0.43369382,67027.0,67026.0,0.150839]
[1729997143953,0.43845708,67027.0,67026.0,0.001644]
[1729997145115,0.53631433,67027.0,67026.0,0.001644]
[1729997145343,0.37147718,67027.0,67026.0,0.001644]
[1729997145590,0.37147718,67027.0,67026.0,0.150839]
[1729997145797,0.37147718,67027.0,67026.0,0.001644]
[1729997146016,0.53631572,67027.0,67026.0,0.001644]
[1729997146282,0.43845986,67027.0,67026.0,0.001644]
[1729997146703,0.37147718,67027.0,67026.0,0.001644]
[1729997146941,0.6256194,67027.0,67026.0,0.001644]
[1729997147155,0.62563146,67027.0,67026.0,0.001644]
[1729997147967,0.5363214,67027.0,67026.0,0.001644]
[1729997148189,0.62563146,67027.0,67026.0,0.001644]
[1729997150720,0.62564768,67027.0,67026.0,0.001644]
[1729997150930,0.79716819,67027.0,67026.0,0.001644]
[1729997151150,0.68553062,67027.0,67026.0,0.001644]
[1729997151374,0.80831935,67027.0,67026.0,0.001644]
[1729997151600,0.68553062,67027.0,67026.0,0.001644]
[1729997151813,0.81949571,67027.0,67026.0,0.001644]
[1729997152048,0.68553062,67027.0,67026.0,0.001644]
[1729997152477,0.69553062,67027.0,67026.0,0.001644]
[1729997154276,0.82949571,67027.0,67026.0,0.001644]
[1729997154516,0.82947254,67027.0,67026.0,0.001644]
[1729997154932,0.82947254,67027.0,67020.0,0.22240179]
[1729997154933,0.00041921,67021.0,67020.0,0.22240179]
[1729997155158,0.48612538,67021.0,67020.0,0.22240179]
[1729997155387,0.48612538,67021.0,67016.0,0.150861]
[1729997155388,0.00041921,67017.0,67016.0,0.150861]
[1729997155594,0.20120176,67017.0,67016.0,0.150861]
[1729997155833,0.20120176,67017.0,67016.0,0.001644]
[1729997155834,0.21404386,67017.0,67016.0,0.001644]
[1729997156041,0.28101649,67017.0,67016.0,0.150862]
[1729997156260,0.21404386,67017.0,67016.0,0.150862]
[1729997157163,0.2586904,67017.0,67016.0,0.150862]
[1729997157599,0.25869025,67017.0,67016.0,0.150862]
[1729997158274,0.21404386,67017.0,67016.0,0.150862]
[1729997159332,0.25868993,67017.0,67016.0,0.150862]
[1729997159759,0.21404386,67017.0,67016.0,0.150862]
[1729997161404,0.06354005,67017.0,67016.0,0.150862]
[1729997161629,0.04119624,67017.0,67016.0,0.150862]
[1729997162277,0.02835414,67017.0,67016.0,0.150862]
[1729997164085,0.02834715,67017.0,67016.0,0.150862]
[1729997164528,0.01437969,67017.0,67016.0,0.150862]
[1729997164747,0.02834025,67017.0,67016.0,0.150862]
[1729997175643,0.02836518,67017.0,67016.0,0.150862]
[1729997178954,0.07305064,67017.0,67016.0,0.150862]
[1729997179172,0.04510467,67017.0,67016.0,0.150862]
[1729997179394,0.0876132,67017.0,67016.0,0.150862]
[1729997181428,0.08760676,67017.0,67016.0,0.150862]
[1729997182326,0.08760849,67017.0,67016.0,0.150862]
[1729997182552,0.04292774,67017.0,67016.0,0.150862]
[1729997183001,0.08760958,67017.0,67016.0,0.150862]
[1729997184589,0.04292774,67017.0,67016.0,0.150862]
[1729997185058,0.08761352,67017.0,67016.0,0.150862]
[1729997185499,0.04292774,67017.0,67016.0,0.150862]
[1729997185735,0.08761579,67017.0,67016.0,0.150862]
[1729997186470,0.04292774,67017.0,67016.0,0.150862]
[1729997186903,0.04293842,67017.0,67016.0,0.150862]
[1729997187153,0.0289584,67017.0,67016.0,0.150862]
[1729997187369,0.10995946,67017.0,67016.0,0.150862]
[1729997188937,0.04293833,67017.0,67016.0,0.150862]
[1729997189380,0.10995946,67017.0,67016.0,0.150862]
[1729997190719,0.10998929,67017.0,67016.0,0.150862]
[1729997192243,0.04293833,67017.0,67016.0,0.150862]
[1729997192654,0.02837916,67017.0,67016.0,0.150862]
[1729997193937,0.08982049,67017.0,67016.0,0.150862]
[1729997194156,0.10380265,67017.0,67016.0,0.150862]
[1729997194372,0.13233858,67017.0,67016.0,0.150862]
[1729997194580,0.29738454,67017.0,67016.0,0.150862]
[1729997195919,0.20798326,67017.0,67016.0,0.150862]
[1729997196193,0.31973486,67017.0,67016.0,0.150862]
[1729997196856,0.20798326,67017.0,67016.0,0.150862]
[1729997197283,0.31973486,67017.0,67016.0,0.150862]
[1729997197517,0.3057527,67017.0,67016.0,0.150862]
[1729997197773,0.3197353,67017.0,67016.0,0.150862]
[1729997200208,0.31993481,67017.0,67016.0,0.150862]
[1729997201334,0.30595359,67017.0,67016.0,0.150862]
[1729997201543,0.31993832,67017.0,67016.0,0.150862]
[1729997202873,0.20809141,67017.0,67016.0,0.150862]
[1729997205769,0.15481266,67017.0,67016.0,0.150862]
[1729997206238,0.31996161,67017.0,67016.0,0.150862]
[1729997208682,0.53619594,67017.0,67016.0,0.001644]
[1729997208920,0.45229392,67017.0,67016.0,0.001644]
[1729997209980,0.41366684,67017.0,67016.0,0.150862]
[1729997210248,0.31996684,67017.0,67016.0,0.150862]
[1729997211143,0.34234268,67017.0,67016.0,0.150862]
[1729997212463,0.31996684,67017.0,67016.0,0.150862]
[1729997213115,0.34234876,67017.0,67016.0,0.150862]
[1729997214289,0.34247412,67017.0,67016.0,0.150862]
[1729997219033,0.34246195,67017.0,67016.0,0.150862]
[1729997219467,0.34246959,67017.0,67016.0,0.150862]
[1729997222094,0.32848278,67017.0,67016.0,0.150862]
[1729997222327,0.06533275,67017.0,67016.0,0.150862]
[1729997222567,0.17724193,67017.0,67016.0,0.150862]
[1729997222778,0.21601989,67017.0,67016.0,0.150862]
[1729997223031,0.22766958,67017.0,67016.0,0.150862]
[1729997223920,0.22766958,67017.0,67016.0,0.001644]
[1729997224154,0.22766958,67017.0,67016.0,0.150862]
[1729997224382,0.22767109,67017.0,67016.0,0.150862]
[1729997225808,0.2276751,67017.0,67016.0,0.150862]
[1729997228290,0.33958707,67017.0,67016.0,0.150862]
[1729997228495,0.2276751,67017.0,67016.0,0.150862]
[1729997231603,0.06243077,67017.0,67016.0,0.150862]
[1729997232033,0.22768271,67017.0,67016.0,0.150862]
[1729997239678,0.22768271,67017.0,67016.0,0.15109874]
[1729997239679,0.06243077,67017.0,67016.0,0.15109874]
[1729997239885,0.12958852,67017.0,67016.0,0.32289874]
[1729997240111,0.0120689,67017.0,67016.0,0.32289874]
[1729997240365,0.10678959,67017.0,67016.0,0.32289874]
[1729997240589,0.02798534,67017.0,67016.0,0.32289874]
[1729997240815,0.0396413,67017.0,67016.0,0.32289874]
[1729997241065,0.02798534,67017.0,67016.0,0.32289874]
[1729997241309,0.01399267,67017.0,67016.0,0.32289874]
[1729997242003,0.01399267,67017.0,67016.0,0.33435902]
[1729997242673,0.02797001,67017.0,67016.0,0.33435902]
[1729997243313,0.01399267,67017.0,67016.0,0.33435902]
[1729997243752,0.01399267,67017.0,67016.0,0.32289874]
[1729997247546,0.01396756,67017.0,67016.0,0.62133074]
[1729997251267,0.00041921,67020.0,67019.0,0.149211]
[1729997251485,0.00041921,67020.0,67019.0,0.24758756]
[1729997251720,0.02835119,67020.0,67019.0,0.24758756]
[1729997251941,0.04001204,67020.0,67019.0,0.24758756]
[1729997252166,0.02835119,67020.0,67019.0,0.24758756]
[1729997256332,0.01438521,67020.0,67019.0,0.24758756]
[1729997256548,0.02835233,67020.0,67019.0,0.24758756]
[1729997258517,0.02835429,67020.0,67019.0,0.24758756]
[1729997262094,0.01438993,67020.0,67019.0,0.24758756]
[1729997262312,0.02836065,67020.0,67019.0,0.24758756]
[1729997269593,0.02838377,67020.0,67019.0,0.24758756]
[1729997270708,0.02838377,67020.0,67019.0,0.149211]
[1729997270938,0.02838377,67020.0,67017.0,0.00023674]
[1729997270939,0.00041921,67019.0,67018.0,0.149213]
[1729997271149,0.02838377,67019.0,67018.0,0.149213]
[1729997271400,0.04004117,67019.0,67018.0,0.149213]
[1729997272238,0.03962196,67019.0,67018.0,0.149213]
[1729997272451,0.00041921,67017.0,67016.0,0.001644]
[1729997272664,0.02838377,67017.0,67016.0,0.001644]
[1729997272885,0.04003836,67017.0,67016.0,0.001644]
[1729997273090,0.02606118,67017.0,67016.0,0.001644]
[1729997273303,0.04004856,67017.0,67016.0,0.001644]
[1729997273510,0.04004856,67017.0,67016.0,0.150862]
[1729997278427,0.13644856,67017.0,67016.0,0.150862]
[1729997282871,0.12246118,67017.0,67016.0,0.150862]
[1729997283082,0.13642932,67017.0,67016.0,0.150862]
[1729997283295,0.18112637,67017.0,67016.0,0.150862]
[1729997284590,0.18110399,67017.0,67016.0,0.150862]
[1729997285267,0.15317085,67017.0,67016.0,0.150862]
[1729997285483,0.18110404,67017.0,67016.0,0.150862]
[1729997286159,0.18110972,67017.0,67016.0,0.150862]
[1729997286392,0.13640699,67017.0,67016.0,0.150862]
[1729997287090,0.1364066,67017.0,67016.0,0.150862]
[1729997289146,0.33161082,67017.0,67016.0,0.150862]
[1729997289362,0.28691041,67017.0,67016.0,0.150862]
[1729997289793,0.33161082,67017.0,67016.0,0.150862]
[1729997290209,0.33161082,67017.0,67016.0,0.001644]
[1729997290425,0.35396102,67017.0,67016.0,0.001644]
[1729997290850,0.42395285,67017.0,67016.0,0.150862]
[1729997291070,0.30087628,67017.0,67016.0,0.150862]
[1729997291500,0.3679168,67017.0,67016.0,0.150862]
[1729997291921,0.30087628,67017.0,67016.0,0.150862]
[1729997292550,0.3679168,67017.0,67016.0,0.150862]
[1729997292758,0.30087628,67017.0,67016.0,0.150862]
[1729997294285,0.34556071,67017.0,67016.0,0.150862]
[1729997294493,0.30087628,67017.0,67016.0,0.150862]
[1729997294935,0.30087899,67017.0,67016.0,0.150862]
[1729997295401,0.28691315,67017.0,67016.0,0.150862]
[1729997296057,0.33159668,67017.0,67016.0,0.150862]
[1729997296521,0.28691315,67017.0,67016.0,0.150862]
[1729997297578,0.33159546,67017.0,67016.0,0.150862]
[1729997298672,0.28691315,67017.0,67016.0,0.150862]
[1729997299159,0.33159557,67017.0,67016.0,0.150862]
[1729997300024,0.28691315,67017.0,67016.0,0.150862]
[1729997300672,0.3315957,67017.0,67016.0,0.150862]
[1729997300892,0.28691315,67017.0,67016.0,0.150862]
[1729997301350,0.33159556,67017.0,67016.0,0.150862]
[1729997302245,0.28691315,67017.0,67016.0,0.150862]
[1729997302902,0.27294538,67017.0,67016.0,0.150862]
[1729997303124,0.28693176,67017.0,67016.0,0.150862]
[1729997305288,0.35395705,67017.0,67016.0,0.150862]
[1729997305502,0.28693176,67017.0,67016.0,0.150862]
[1729997305911,0.35395705,67017.0,67016.0,0.150862]
[1729997308068,0.28693176,67017.0,67016.0,0.150862]
[1729997308273,0.35395705,67017.0,67016.0,0.150862]
[1729997308699,0.28693176,67017.0,67016.0,0.150862]
[1729997309138,0.35395705,67017.0,67016.0,0.150862]
[1729997310001,0.35395619,67017.0,67016.0,0.150862]
[1729997310928,0.353967,67017.0,67016.0,0.150862]
[1729997311394,0.28694251,67017.0,67016.0,0.150862]
[1729997311832,0.35397788,67017.0,67016.0,0.150862]
[1729997312057,0.28694251,67017.0,67016.0,0.150862]
[1729997312265,0.37635507,67017.0,67016.0,0.150862]
[1729997312956,0.47429856,67017.0,67016.0,0.150862]
[1729997313180,0.56366447,67017.0,67016.0,0.150862]
[1729997314727,0.54978969,67017.0,67016.0,0.150862]
[1729997314952,0.5637722,67017.0,67016.0,0.150862]
[1729997315380,0.5637722,67017.0,67016.0,0.001644]
[1729997315381,0.58612682,67017.0,67016.0,0.001644]
[1729997315590,0.58612682,67017.0,67016.0,0.150862]
[1729997315816,0.58612682,67017.0,67016.0,0.001644]
[1729997316036,0.58612682,67017.0,67016.0,0.150862]
[1729997316245,0.47435372,67017.0,67016.0,0.150862]
[1729997316660,0.58618873,67017.0,67016.0,0.150862]
[1729997317337,0.47435372,67017.0,67016.0,0.150862]
[1729997317546,0.47435372,67017.0,67016.0,0.001644]
[1729997317751,0.47435372,67017.0,67016.0,0.150862]
[1729997322436,0.47437062,67017.0,67016.0,0.001644]
[1729997322889,0.47437062,67017.0,67016.0,0.150862]
[1729997323595,0.47437062,67017.0,67016.0,0.001644]
[1729997324782,0.47437062,67017.0,67016.0,0.150862]
[1729997326170,0.43800205,67017.0,67016.0,0.150862]
[1729997326398,0.4743617,67017.0,67016.0,0.150862]
[1729997326647,0.4743617,67017.0,67016.0,0.001644]
[1729997326890,0.4743617,67017.0,67016.0,0.150862]
[1729997328474,0.47448022,67017.0,67016.0,0.150862]
[1729997333612,0.46049574,67017.0,67016.0,0.150862]
[1729997333830,0.47447876,67017.0,67016.0,0.150862]
[1729997335999,0.37807876,67017.0,67016.0,0.150862]
[1729997337365,0.34171912,67017.0,67016.0,0.150862]
[1729997337609,0.37807501,67017.0,67016.0,0.150862]
[1729997338261,0.37809925,67017.0,67016.0,0.150862]
[1729997345488,0.37811224,67017.0,67016.0,0.150862]
[1729997346182,0.37816071,67017.0,67016.0,0.150862]
[1729997347258,0.21293365,67017.0,67016.0,0.150862]
[1729997354604,0.34181055,67017.0,67016.0,0.150862]
[1729997354826,0.37818533,67017.0,67016.0,0.150862]
[1729997356711,0.3781851,67017.0,67016.0,0.150862]
[1729997357342,0.3781851,67017.0,67016.0,0.001644]
[1729997357551,0.3781851,67017.0,67016.0,0.150862]
[1729997358177,0.37818538,67017.0,67016.0,0.150862]
[1729997358639,0.37818538,67017.0,67016.0,0.001644]
[1729997359028,0.40057045,67017.0,67016.0,0.001644]
[1729997359226,0.40057045,67017.0,67016.0,0.150862]
[1729997360190,0.40057045,67017.0,67016.0,0.001644]
[1729997361564,0.00041921,67016.0,67015.0,0.00135721]
[1729997361802,0.15092302,67016.0,67015.0,0.00135721]
[1729997362110,0.23537402,67016.0,67015.0,0.00135721]
[1729997362735,0.23537402,67016.0,67015.0,0.15057721]
[1729997363640,0.23537402,67016.0,67015.0,0.00135721]
[1729997363847,0.23537402,67016.0,67015.0,0.15057721]
[1729997364605,0.40061917,67016.0,67015.0,0.15057721]
[1729997368214,0.40062727,67016.0,67015.0,0.15057721]
[1729997369281,0.40063002,67016.0,67015.0,0.15057721]
[1729997370977,0.40063002,67016.0,67015.0,0.00135721]
[1729997372563,0.40063002,67016.0,67015.0,0.15057721]
[1729997372784,0.40064061,67016.0,67015.0,0.15057721]
[1729997376056,0.40063754,67016.0,67015.0,0.15057721]
[1729997376266,0.34187486,67016.0,67015.0,0.15057721]
[1729997376541,0.40063583,67016.0,67015.0,0.15057721]
[1729997377641,0.40063583,67016.0,67015.0,0.00135721]
[1729997377983,0.40063583,67016.0,67015.0,0.15057721]
[1729997379918,0.3782507,67016.0,67015.0,0.15057721]
[1729997380131,0.40063635,67016.0,67015.0,0.15057721]
[1729997381679,0.40064175,67016.0,67015.0,0.15057721]
[1729997382068,0.40063686,67016.0,67015.0,0.15057721]
[1729997383670,0.32788468,67016.0,67015.0,0.15057721]
[1729997383899,0.40143992,67016.0,67015.0,0.15057721]
[1729997384107,0.37066818,67016.0,67015.0,0.15057721]
[1729997384324,0.3790605,67016.0,67015.0,0.15057721]
[1729997384538,0.40143998,67016.0,67015.0,0.15057721]
[1729997387373,0.32870668,67016.0,67015.0,0.15057721]